bitfinex-derivatives/quotes_BTCF0:USTF0_20251002
["timestamp","ask_amount","ask_price","bid_price","bid_amount"]
[1759405934121,0.36427299,118860.0,118850.0,0.1191577]
[1759405934122,1.12479299,118860.0,118850.0,0.1191577]
[1759405934318,0.8667206,118860.0,118850.0,0.4799577]
[1759405934515,0.8667206,118860.0,118850.0,0.1191577]
[1759405936925,1.12479299,118860.0,118850.0,0.1191577]
[1759405938725,1.12467299,118860.0,118850.0,0.1191577]
[1759405941128,1.11100271,118860.0,118850.0,0.1191577]
[1759405944229,0.85293032,118860.0,118850.0,0.75764107]
[1759405945229,0.85293032,118860.0,118850.0,0.49956868]
[1759405945527,0.85293032,118860.0,118850.0,0.75764107]
[1759405952530,0.83926026,118860.0,118850.0,0.75764107]
[1759405958333,0.83926026,118860.0,118850.0,0.4799577]
[1759405958539,0.83926026,118860.0,118850.0,0.73803009]
[1759405958741,0.83926026,118860.0,118850.0,0.75789409]
[1759405958939,1.09733265,118860.0,118850.0,0.75789409]
[1759405959138,1.09733265,118860.0,118850.0,0.4998217]
[1759405960241,1.0972461,118860.0,118850.0,0.75780754]
[1759405961238,1.0972461,118860.0,118850.0,0.39700754]
[1759405961941,1.0972461,118860.0,118850.0,0.39644214]
[1759405962945,1.0972461,118860.0,118850.0,0.1384563]
[1759405963144,1.0972461,118860.0,118850.0,0.39644214]
[1759405963339,1.0972461,118860.0,118850.0,0.1384563]
[1759405963642,1.0972461,118860.0,118850.0,0.39644214]
[1759405966544,1.08357585,118860.0,118850.0,0.39644214]
[1759405967243,1.35276169,118860.0,118850.0,0.1251763]
[1759405969246,1.35276169,118860.0,118850.0,0.38316214]
[1759405969455,1.34156169,118860.0,118850.0,0.39619214]
[1759405970247,1.34156169,118860.0,118850.0,0.1382063]
[1759405970445,1.70236169,118860.0,118850.0,0.0410786]
[1759405970747,1.70236169,118860.0,118850.0,0.0192986]
[1759405971247,1.70236169,118860.0,118850.0,0.0412086]
[1759405972149,1.70236169,118860.0,118850.0,0.1253063]
[1759405975949,1.34156169,118860.0,118850.0,0.1253063]
[1759405976451,1.29848168,118860.0,118850.0,0.1253063]
[1759405976652,1.38257228,118860.0,118850.0,0.1253063]
[1759405978754,0.62217228,118860.0,118850.0,0.1253063]
[1759405979049,0.62217228,118860.0,118850.0,0.1383363]
[1759405979050,1.38225228,118860.0,118850.0,0.1383363]
[1759405979251,0.62217228,118860.0,118850.0,0.4991363]
[1759405979454,1.12418644,118860.0,118850.0,0.75712214]
[1759405980252,1.12418644,118860.0,118850.0,0.4991363]
[1759405980457,0.36418644,118860.0,118850.0,0.75712214]
[1759405980657,1.12422644,118860.0,118850.0,0.75712214]
[1759405981053,0.36418644,118860.0,118850.0,0.75712214]
[1759405981252,0.62217228,118860.0,118850.0,0.75712214]
[1759405981552,1.38225228,118860.0,118850.0,0.75712214]
[1759405982157,0.1062006,118860.0,118850.0,0.75712214]
[1759405982357,1.38225228,118860.0,118850.0,0.75712214]
[1759405984059,1.38221228,118860.0,118850.0,0.75712214]
[1759405985561,1.38221228,118860.0,118850.0,0.4991363]
[1759405985761,1.38221228,118860.0,118850.0,0.75712214]
[1759405986372,0.8662006,118860.0,118850.0,0.4991363]
[1759405986669,0.62217228,118860.0,118850.0,0.75712214]
[1759405986870,1.38213228,118860.0,118850.0,0.75712214]
[1759405988072,0.8661606,118860.0,118850.0,0.75712214]
[1759405988370,1.38213228,118860.0,118850.0,0.75712214]
[1759405989170,0.36418644,118860.0,118850.0,0.75712214]
[1759405989371,1.12406644,118860.0,118850.0,0.75712214]
[1759405991466,0.36418644,118860.0,118850.0,0.75712214]
[1759405991667,1.11035615,118860.0,118850.0,0.75712214]
[1759405992263,0.35051615,118860.0,118850.0,0.75712214]
[1759405992571,1.11035615,118860.0,118850.0,0.73782354]
[1759405992872,1.11035615,118860.0,118850.0,0.73782324]
[1759405996272,1.11035615,118860.0,118850.0,0.4798374]
[1759405996467,1.11035615,118860.0,118850.0,0.73782324]
[1759405996672,1.11035615,118860.0,118850.0,0.37702324]
[1759405998878,1.11035615,118860.0,118850.0,0.29292584]
[1759405999179,1.36834199,118860.0,118850.0,0.29292584]
[1759406000375,1.36834199,118860.0,118850.0,0.37702324]
[1759406001676,1.35467137,118860.0,118850.0,0.37702324]
[1759406001870,1.37303137,118860.0,118850.0,0.37702324]
[1759406004275,1.37303137,118860.0,118850.0,0.1190374]
[1759406004778,1.37303137,118860.0,118850.0,0.37702324]
[1759406004779,0.61319137,118860.0,118850.0,0.37702324]
[1759406004975,1.37283137,118860.0,118850.0,0.37702324]
[1759406006874,0.85685969,118860.0,118850.0,0.37702324]
[1759406007070,1.37283137,118860.0,118850.0,0.37702324]
[1759406007880,1.37283137,118860.0,118850.0,0.29292584]
[1759406008272,1.37283137,118860.0,118850.0,0.03494]
[1759406008471,1.37283137,118860.0,118850.0,0.1190374]
[1759406008672,1.37283137,118860.0,118850.0,0.37702324]
[1759406009682,1.37283137,118860.0,118850.0,0.1190374]
[1759406010577,1.37283137,118860.0,118850.0,0.37702324]
[1759406011282,0.85685969,118860.0,118850.0,0.37702324]
[1759406011680,1.35916069,118860.0,118850.0,0.37702324]
[1759406013184,1.10117485,118860.0,118850.0,0.37702324]
[1759406014080,0.01836,118860.0,118850.0,0.37702324]
[1759406014288,0.1024433,118870.0,118860.0,0.1187503]
[1759406014478,0.778,118870.0,118860.0,0.99552198]
[1759406015184,0.01836,118870.0,118860.0,0.99552198]
[1759406015380,0.36313274,118880.0,118870.0,0.1187433]
[1759406015583,0.7173569,118880.0,118870.0,0.73752914]
[1759406015773,0.1073569,118880.0,118870.0,0.73752914]
[1759406015976,0.10087435,118890.0,118880.0,0.1187362]
[1759406015977,0.086282,118890.0,118880.0,0.1187362]
[1759406016184,0.845922,118890.0,118880.0,0.37672204]
[1759406016385,1.10390784,118890.0,118880.0,0.37672204]
[1759406017586,1.10990784,118890.0,118880.0,0.37672204]
[1759406017879,1.10990784,118890.0,118880.0,0.1187362]
[1759406018084,1.10990784,118890.0,118880.0,0.37672204]
[1759406018287,1.10390784,118890.0,118880.0,0.37672204]
[1759406018486,1.10990784,118890.0,118880.0,0.37672204]
[1759406018883,0.87024561,118890.0,118880.0,0.37672204]
[1759406019090,1.12823145,118890.0,118880.0,0.03466]
[1759406019388,1.12823145,118890.0,118880.0,0.01261]
[1759406019789,1.12823145,118890.0,118880.0,0.03466]
[1759406020390,1.12812916,118890.0,118880.0,0.03466]
[1759406021185,1.12812916,118890.0,118870.0,0.39546]
[1759406021186,0.0862862,118880.0,118870.0,0.39546]
[1759406021390,0.34416975,118880.0,118870.0,0.01261]
[1759406021785,0.34416975,118880.0,118870.0,0.03466]
[1759406022184,0.34416975,118880.0,118870.0,0.13807187]
[1759406022585,0.34716975,118880.0,118870.0,0.13807187]
[1759406022888,0.35016975,118880.0,118870.0,0.03466]
[1759406023290,0.35016975,118880.0,118870.0,0.01261]
[1759406024087,0.0840834,118870.0,118860.0,0.4767147]
[1759406024292,0.8461734,118870.0,118860.0,0.4987647]
[1759406024695,1.10405695,118870.0,118860.0,0.4987647]
[1759406025388,0.8461734,118870.0,118860.0,0.4987647]
[1759406027298,0.8462534,118870.0,118860.0,0.4987647]
[1759406030201,0.8462534,118870.0,118860.0,0.75664825]
[1759406031204,0.8461733,118870.0,118860.0,0.75664825]
[1759406034007,0.0862933,118870.0,118860.0,0.75664825]
[1759406034208,0.8461733,118870.0,118860.0,0.75664825]
[1759406035702,0.83250532,118870.0,118860.0,0.75664825]
[1759406038812,0.83250532,118870.0,118860.0,0.4987647]
[1759406039108,0.83250532,118870.0,118860.0,0.75664825]
[1759406040006,0.07262532,118870.0,118860.0,0.75664825]
[1759406040207,0.83238532,118870.0,118860.0,0.75664825]
[1759406043511,0.07262532,118870.0,118860.0,0.83207891]
[1759406043712,0.83230532,118870.0,118860.0,0.83207891]
[1759406044213,0.0840822,118880.0,118870.0,0.1201432]
[1759406044416,1.10160575,118880.0,118870.0,0.4809432]
[1759406045413,0.34496575,118880.0,118870.0,0.4309432]
[1759406045715,1.09093813,118880.0,118870.0,0.4309432]
[1759406046314,0.33129813,118880.0,118870.0,0.4309432]
[1759406046513,1.09089813,118880.0,118870.0,0.4309432]
[1759406051018,0.83301458,118880.0,118870.0,0.4309432]
[1759406051205,1.09089813,118880.0,118870.0,0.4309432]
[1759406052306,1.09089813,118880.0,118870.0,0.0701432]
[1759406052513,1.09089813,118880.0,118870.0,0.4309432]
[1759406054117,1.09089813,118880.0,118870.0,0.0701432]
[1759406058922,1.07723025,118880.0,118870.0,0.0701432]
[1759406059223,1.07715025,118880.0,118870.0,0.0701432]
[1759406063622,0.31763025,118880.0,118870.0,0.4309432]
[1759406063818,1.07715025,118880.0,118870.0,0.4309432]
[1759406070527,0.8192667,118880.0,118870.0,0.4309432]
[1759406070721,1.07715025,118880.0,118870.0,0.4309432]
[1759406078636,0.8192667,118880.0,118870.0,0.4309432]
[1759406078834,1.07715025,118880.0,118870.0,0.4309432]
[1759406079039,0.8192667,118880.0,118870.0,0.4309432]
[1759406079233,1.07715025,118880.0,118870.0,0.4309432]
[1759406080136,0.0597467,118880.0,118870.0,1.08882675]
[1759406080334,0.8192667,118880.0,118870.0,1.08879148]
[1759406080633,0.8192667,118880.0,118870.0,0.68879148]
[1759406081138,1.07711498,118880.0,118870.0,0.68879148]
[1759406082137,1.02036828,118880.0,118870.0,0.68879148]
[1759406083440,0.76252,118880.0,118870.0,0.68879148]
[1759406083642,1.02036828,118880.0,118870.0,0.68879148]
[1759406083840,0.76252,118880.0,118870.0,0.68879148]
[1759406084040,1.02036828,118880.0,118870.0,0.68879148]
[1759406086240,0.86331651,118880.0,118870.0,0.4309432]
[1759406086444,1.37901307,118880.0,118870.0,0.4309432]
[1759406086739,1.37901307,118880.0,118870.0,0.4809434]
[1759406086946,1.37901307,118880.0,118870.0,0.0979434]
[1759406087247,1.37901307,118880.0,118870.0,0.1198834]
[1759406093850,1.37901307,118880.0,118870.0,0.4806834]
[1759406094255,1.36891999,118880.0,118870.0,0.4806834]
[1759406095149,1.36891999,118880.0,118870.0,0.1198834]
[1759406095447,1.35525206,118880.0,118870.0,0.1198834]
[1759406096049,0.8395555,118880.0,118870.0,0.1198834]
[1759406096249,1.35525206,118880.0,118870.0,0.1198834]
[1759406096649,0.8395555,118880.0,118870.0,0.1198834]
[1759406096850,1.35525206,118880.0,118870.0,0.1198834]
[1759406097351,1.35525206,118880.0,118870.0,0.4806834]
[1759406098955,1.35525206,118880.0,118870.0,0.1198834]
[1759406100954,1.35525206,118880.0,118870.0,0.1198833]
[1759406101256,0.59977286,118880.0,118870.0,0.1198833]
[1759406101460,1.35921286,118880.0,118870.0,0.1198833]
[1759406101758,1.35921286,118880.0,118870.0,0.37773158]
[1759406101959,1.10136458,118880.0,118870.0,0.37773158]
[1759406105257,0.8435163,118880.0,118870.0,0.37773158]
[1759406105457,1.10136458,118880.0,118870.0,0.37773158]
[1759406105862,1.10136458,118880.0,118870.0,0.1198833]
[1759406106163,1.35921286,118880.0,118870.0,0.37773158]
[1759406106564,1.35921286,118880.0,118870.0,0.1198833]
[1759406106763,1.35921286,118880.0,118870.0,0.37773158]
[1759406107668,1.35921286,118880.0,118870.0,0.1198833]
[1759406113370,1.37607782,118880.0,118870.0,0.1198834]
[1759406115466,0.0840834,118870.0,118860.0,0.55230033]
[1759406115673,0.58968672,118870.0,118860.0,0.55230033]
[1759406115966,0.57601791,118870.0,118860.0,0.39277937]
[1759406116662,0.57601791,118870.0,118860.0,0.4774387]
[1759406116971,0.57601791,118870.0,118860.0,0.1166387]
[1759406117269,0.57601791,118870.0,118860.0,0.1417187]
[1759406117468,0.57601791,118870.0,118860.0,0.1397187]
[1759406117770,0.57601791,118870.0,118860.0,0.1417187]
[1759406118175,0.31816963,118870.0,118860.0,0.1417187]
[1759406119170,1.07756963,118870.0,118860.0,0.1417187]
[1759406121271,1.07756963,118870.0,118860.0,0.1217804]
[1759406121870,0.70272818,118880.0,118870.0,0.0840833]
[1759406122076,1.2043199,118880.0,118870.0,0.1187433]
[1759406122373,1.72001646,118880.0,118870.0,0.1187433]
[1759406122573,1.73681231,118880.0,118870.0,0.1187433]
[1759406123274,1.73781231,118880.0,118870.0,0.1187433]
[1759406123475,1.22211575,118880.0,118870.0,0.1187433]
[1759406123670,1.73781231,118880.0,118870.0,0.1187433]
[1759406128876,1.73781231,118880.0,118870.0,0.0968533]
[1759406129781,1.73781231,118880.0,118870.0,0.1200333]
[1759406133485,1.73781231,118880.0,118870.0,0.0968533]
[1759406139388,1.73781231,118880.0,118870.0,0.1200333]
[1759406140193,1.73781231,118880.0,118870.0,0.03595]
[1759406140490,1.48005296,118880.0,118870.0,0.01277]
[1759406143285,0.0840833,118870.0,118860.0,0.1198792]
[1759406143482,0.34202051,118870.0,118860.0,0.1198792]
[1759406144489,0.34202051,118870.0,118860.0,0.1218792]
[1759406144893,0.34202051,118870.0,118860.0,0.1198792]
[1759406145193,0.34202051,118870.0,118860.0,0.1218792]
[1759406149399,1.10146051,118870.0,118860.0,0.1218792]
[1759406151296,0.34202051,118870.0,118860.0,0.1218792]
[1759406151495,1.10146051,118870.0,118860.0,0.1218792]
[1759406152992,1.10146051,118870.0,118860.0,0.0986992]
[1759406154299,1.10146051,118870.0,118860.0,0.01461]
[1759406154495,1.10146051,118870.0,118860.0,0.002]
[1759406154693,1.86226051,118870.0,118860.0,0.002]
[1759406155590,1.86226051,118870.0,118860.0,0.02178255]
[1759406156202,1.50146051,118870.0,118860.0,0.14189295]
[1759406156696,0.74202051,118870.0,118860.0,0.14189295]
[1759406156901,1.50246051,118870.0,118860.0,0.13989295]
[1759406157602,1.50146051,118870.0,118860.0,0.13989295]
[1759406157801,1.50146051,118870.0,118860.0,0.14189295]
[1759406159810,1.2435233,118870.0,118860.0,0.14189295]
[1759406159999,1.50146051,118870.0,118860.0,0.14189295]
[1759406161701,1.86226051,118870.0,118860.0,0.14189295]
[1759406162206,1.86226051,118870.0,118860.0,0.03452255]
[1759406163310,1.86226051,118870.0,118860.0,0.02178255]
[1759406164205,1.86226051,118870.0,118860.0,0.002]
[1759406164411,0.0840906,118860.0,118850.0,0.1204023]
[1759406164610,0.35878049,118860.0,118850.0,0.1204023]
[1759406164813,0.34202781,118860.0,118850.0,0.1204023]
[1759406166615,0.34202781,118860.0,118850.0,0.1234023]
[1759406167007,0.34202781,118860.0,118850.0,0.1264023]
[1759406169011,0.34202781,118860.0,118850.0,0.04231]
[1759406169216,0.97767192,118860.0,118850.0,0.006]
[1759406169408,0.97767192,118860.0,118850.0,0.0900975]
[1759406169610,1.73711192,118860.0,118850.0,0.0900975]
[1759406169808,1.47917471,118860.0,118850.0,0.0900975]
[1759406170213,1.47917471,118860.0,118850.0,0.1028375]
[1759406170610,1.11837471,118860.0,118850.0,0.1261175]
[1759406171218,0.35893471,118860.0,118850.0,0.1261175]
[1759406171517,1.11837471,118860.0,118850.0,0.1261175]
[1759406172212,1.11837471,118860.0,118850.0,0.1201175]
[1759406173120,1.11837471,118860.0,118850.0,0.1231175]
[1759406173415,1.11837471,118860.0,118850.0,0.1201175]
[1759406173607,1.11837471,118860.0,118850.0,0.1231175]
[1759406177018,1.10146781,118860.0,118850.0,0.1231175]
[1759406177522,0.8435306,118860.0,118850.0,0.1231175]
[1759406177824,1.1187227,118860.0,118850.0,0.1231175]
[1759406178016,0.34202781,118860.0,118850.0,0.1231175]
[1759406178324,0.8435306,118860.0,118850.0,0.38105471]
[1759406178619,0.8435306,118860.0,118850.0,0.1231175]
[1759406178819,1.10146781,118860.0,118850.0,0.14259788]
[1759406180635,1.10146781,118860.0,118850.0,0.50339788]
[1759406182031,0.8435306,118860.0,118850.0,0.4839175]
[1759406182328,1.10146781,118860.0,118850.0,0.4839175]
[1759406183537,1.10146781,118860.0,118850.0,0.1231175]
[1759406183731,1.10146781,118860.0,118850.0,0.4839175]
[1759406184436,0.8435306,118860.0,118850.0,0.4839175]
[1759406184632,1.10146781,118860.0,118850.0,0.4839175]
[1759406185039,1.10146781,118860.0,118850.0,0.74185471]
[1759406185040,0.8434903,118860.0,118850.0,0.74185471]
[1759406185431,0.0840903,118860.0,118850.0,0.74185471]
[1759406185630,0.8434903,118860.0,118850.0,0.74185471]
[1759406186141,0.8434903,118860.0,118850.0,0.4839175]
[1759406186930,1.12429337,118860.0,118850.0,0.4839175]
[1759406190442,1.10142751,118860.0,118850.0,0.4839175]
[1759406191838,1.08775722,118860.0,118850.0,0.4839175]
[1759406197347,1.08775722,118860.0,118850.0,0.1231175]
[1759406202052,1.08775722,118860.0,118850.0,0.1231175]
[1759406202248,1.34582743,118860.0,118850.0,0.1231175]
[1759406202853,1.34582743,118860.0,118850.0,0.01574]
[1759406203054,1.34582743,118860.0,118850.0,0.003]
[1759406203352,1.70662743,118860.0,118850.0,0.003]
[1759406203848,1.96463114,118860.0,118850.0,0.003]
[1759406204156,2.3875382,118860.0,118850.0,0.003]
[1759406204355,2.12953449,118860.0,118850.0,0.003]
[1759406205055,0.0840974,118850.0,118840.0,0.03258724]
[1759406205255,0.70290111,118850.0,118840.0,0.03258724]
[1759406205856,0.70290111,118850.0,118840.0,0.11669174]
[1759406206557,0.70290111,118850.0,118840.0,0.11769174]
[1759406206758,0.70290111,118850.0,118840.0,0.11669174]
[1759406206959,0.70290111,118850.0,118840.0,0.13906174]
[1759406207658,0.70290111,118850.0,118840.0,0.14006174]
[1759406208661,1.63568945,118850.0,118840.0,0.001]
[1759406208956,0.0841116,118830.0,118820.0,0.1192778]
[1759406209160,1.10147531,118830.0,118820.0,0.1192778]
[1759406209557,0.8434716,118830.0,118820.0,0.37728151]
[1759406209766,1.10147531,118830.0,118820.0,0.37728151]
[1759406210359,0.34211531,118830.0,118820.0,0.37728151]
[1759406210660,1.10147531,118830.0,118820.0,0.38128151]
[1759406211160,0.34211531,118830.0,118820.0,0.38128151]
[1759406211355,1.10147531,118830.0,118820.0,0.38128151]
[1759406211855,1.11511899,118830.0,118820.0,0.38128151]
[1759406212950,1.11511899,118830.0,118820.0,0.63928522]
[1759406214159,1.11511899,118830.0,118820.0,0.38128151]
[1759406214358,0.77304368,118830.0,118820.0,1.00008522]
[1759406214660,0.0841079,118840.0,118830.0,0.1193615]
[1759406214955,0.8435079,118840.0,118830.0,0.75740522]
[1759406215361,0.0841079,118840.0,118830.0,0.75740522]
[1759406215762,0.8435479,118840.0,118830.0,0.75740522]
[1759406215960,0.8435479,118840.0,118830.0,0.75940522]
[1759406216561,0.8435079,118840.0,118830.0,0.75940522]
[1759406217563,0.0841079,118840.0,118830.0,0.75940522]
[1759406217762,0.8435479,118840.0,118830.0,0.75940522]
[1759406218363,0.0841079,118840.0,118830.0,0.75940522]
[1759406218566,0.8435079,118840.0,118830.0,0.75940522]
[1759406227278,1.10151161,118840.0,118830.0,0.75940522]
[1759406228472,0.34211161,118840.0,118830.0,0.39860522]
[1759406228670,1.10151161,118840.0,118830.0,0.39860522]
[1759406229481,1.10151161,118840.0,118830.0,0.03448001]
[1759406229482,1.35951532,118840.0,118830.0,0.03448001]
[1759406229777,1.35951532,118840.0,118830.0,0.02124001]
[1759406231575,1.35951532,118840.0,118830.0,0.002]
[1759406231576,2.12031532,118840.0,118830.0,0.002]
[1759406231879,2.13721691,118840.0,118830.0,0.002]
[1759406232775,2.16015328,118840.0,118830.0,0.002]
[1759406232975,0.0841186,118820.0,118810.0,0.03308492]
[1759406233281,1.34585154,118820.0,118810.0,0.05509492]
[1759406234076,1.34585154,118820.0,118810.0,0.03308492]
[1759406234576,1.34585154,118820.0,118810.0,0.05509492]
[1759406235168,1.34585154,118820.0,118810.0,0.03516]
[1759406237280,1.34585154,118820.0,118810.0,0.01315]
[1759406237778,1.34585154,118820.0,118810.0,0.03516]
[1759406238379,1.34585154,118820.0,118810.0,0.01315]
[1759406238580,0.0841327,118800.0,118790.0,0.01333389]
[1759406238781,1.72038012,118800.0,118790.0,0.01333389]
[1759406238973,0.96094012,118800.0,118790.0,0.01333389]
[1759406239174,1.97838383,118800.0,118790.0,9.389e-05]
[1759406239372,1.72038012,118800.0,118790.0,9.389e-05]
[1759406239573,2.73918383,118800.0,118790.0,9.389e-05]
[1759406239773,0.10094777,118780.0,118770.0,0.03656]
[1759406239973,0.61695519,118780.0,118770.0,0.03656]
[1759406240180,1.37219881,118780.0,118770.0,0.03656]
[1759406240574,0.85627139,118780.0,118770.0,0.03656]
[1759406240872,1.37235092,118780.0,118770.0,0.03656]
[1759406241282,0.084154,118770.0,118760.0,0.03656]
[1759406241481,0.34215771,118770.0,118760.0,0.37872481]
[1759406241781,1.10167771,118770.0,118760.0,0.37872481]
[1759406241979,7.211e-05,118780.0,118770.0,0.120714]
[1759406242183,0.33027211,118780.0,118770.0,0.99752142]
[1759406242373,0.33027211,118780.0,118770.0,1.00652142]
[1759406242682,0.41441901,118780.0,118770.0,0.74851771]
[1759406243083,0.84449901,118780.0,118770.0,0.74851771]
[1759406243984,1.10250272,118780.0,118770.0,0.74851771]
[1759406244183,1.10250272,118780.0,118770.0,0.481514]
[1759406244386,1.36050643,118780.0,118770.0,0.03656]
[1759406244583,1.72130643,118780.0,118770.0,0.03656]
[1759406244784,1.72130643,118780.0,118770.0,0.01358]
[1759406244977,1.36050643,118780.0,118770.0,0.02258]
[1759406245178,0.34222272,118780.0,118770.0,0.04514]
[1759406245377,1.10250272,118780.0,118770.0,0.04514]
[1759406245673,1.10254272,118780.0,118770.0,0.04514]
[1759406245875,0.84457901,118780.0,118770.0,0.30314371]
[1759406246083,0.08421901,118780.0,118770.0,0.38729771]
[1759406246285,0.08421901,118780.0,118770.0,0.74809771]
[1759406246588,0.76055211,118780.0,118770.0,0.74809771]
[1759406246978,0.84469901,118780.0,118770.0,0.74809771]
[1759406248685,0.84469901,118780.0,118770.0,0.490094]
[1759406248882,0.84469901,118780.0,118770.0,0.74809771]
[1759406249782,0.84469901,118780.0,118770.0,0.490094]
[1759406249982,0.84469901,118780.0,118770.0,0.74809771]
[1759406251286,0.76047211,118780.0,118770.0,0.74809771]
[1759406251586,0.84461901,118780.0,118770.0,0.74809771]
[1759406251787,0.84461901,118780.0,118770.0,0.74009771]
[1759406252084,0.84461901,118780.0,118770.0,0.483094]
[1759406252277,0.84461901,118780.0,118770.0,0.74109771]
[1759406252682,0.76051211,118780.0,118770.0,0.74109771]
[1759406252883,7.211e-05,118780.0,118770.0,1.39910142]
[1759406253585,7.211e-05,118780.0,118770.0,1.50169771]
[1759406254185,7.211e-05,118780.0,118770.0,1.75970142]
[1759406254482,7.211e-05,118780.0,118770.0,1.243694]
[1759406254684,7.211e-05,118780.0,118770.0,1.50169771]
[1759406255486,0.34222272,118780.0,118770.0,0.483094]
[1759406255682,0.34222272,118780.0,118770.0,0.74109771]
[1759406255987,0.34222272,118780.0,118770.0,0.483094]
[1759406256289,0.34222272,118780.0,118770.0,0.74109771]
[1759406256987,0.25807582,118780.0,118770.0,0.74109771]
[1759406257187,7.211e-05,118780.0,118770.0,1.4882085]
[1759406259485,0.08422311,118780.0,118770.0,1.251054]
[1759406259786,7.211e-05,118780.0,118770.0,1.50901771]
[1759406260187,7.211e-05,118780.0,118770.0,1.50001771]
[1759406260481,7.211e-05,118780.0,118770.0,1.50801771]
[1759406260883,7.211e-05,118780.0,118770.0,1.50001771]
[1759406261086,7.211e-05,118780.0,118770.0,1.50501771]
[1759406261389,7.211e-05,118780.0,118770.0,1.246974]
[1759406261390,0.08422321,118780.0,118770.0,1.246974]
[1759406261689,0.08422321,118780.0,118770.0,0.73909771]
[1759406261890,0.08422321,118780.0,118770.0,1.49993771]
[1759406262187,0.08422321,118780.0,118770.0,1.50721998]
[1759406262585,0.08422321,118780.0,118770.0,0.74637998]
[1759406262785,0.08422321,118780.0,118770.0,1.50721998]
[1759406262981,0.08422321,118780.0,118770.0,0.74637998]
[1759406263285,0.34250919,118780.0,118770.0,0.4880983]
[1759406263483,1.10330919,118780.0,118770.0,0.04314]
[1759406263679,1.10330919,118780.0,118770.0,0.02058]
[1759406264486,1.38462414,118780.0,118770.0,0.007]
[1759406265098,1.12633816,118780.0,118770.0,0.007]
[1759406265588,1.12633816,118780.0,118770.0,0.04252]
[1759406265589,1.22909218,118780.0,118770.0,0.04252]
[1759406265785,1.48737816,118780.0,118770.0,0.04252]
[1759406266190,1.50980923,118780.0,118770.0,0.04252]
[1759406266392,0.74876923,118780.0,118770.0,0.04252]
[1759406266593,1.50980923,118780.0,118770.0,0.04252]
[1759406267399,1.22909218,118780.0,118770.0,0.04252]
[1759406267594,1.50980923,118780.0,118770.0,0.04252]
[1759406268098,0.74876923,118780.0,118770.0,0.04252]
[1759406268292,1.51004923,118780.0,118770.0,0.04252]
[1759406269697,0.46805218,118780.0,118770.0,0.04252]
[1759406269899,1.22929218,118780.0,118770.0,0.04252]
[1759406270694,0.46805218,118780.0,118770.0,0.04252]
[1759406270901,1.22925218,118780.0,118770.0,0.1266781]
[1759406271702,1.22925218,118780.0,118770.0,0.01996]
[1759406272000,1.50996923,118780.0,118770.0,0.04109]
[1759406272300,1.22925218,118780.0,118770.0,0.04109]
[1759406273300,1.22925218,118780.0,118770.0,0.1252482]
[1759406275000,0.46805218,118780.0,118770.0,0.1252482]
[1759406275209,0.86837218,118780.0,118770.0,0.1252482]
[1759406277706,1.22917218,118780.0,118770.0,0.1252482]
[1759406281212,1.22917218,118780.0,118770.0,0.04109]
[1759406281814,1.50988923,118780.0,118770.0,0.04109]
[1759406282315,1.22917218,118780.0,118770.0,0.04109]
[1759406282813,1.22917218,118780.0,118770.0,0.01996]
[1759406283410,1.22917218,118780.0,118770.0,0.04109]
[1759406284113,1.22917218,118780.0,118770.0,0.01996]
[1759406284507,1.22917218,118780.0,118770.0,0.007]
[1759406284508,1.50988923,118780.0,118770.0,0.007]
[1759406285816,1.50988923,118780.0,118770.0,0.02031]
[1759406286115,1.50988923,118780.0,118770.0,0.04144]
[1759406286617,1.22917218,118780.0,118770.0,0.04144]
[1759406287117,1.20614321,118780.0,118770.0,0.04144]
[1759406287419,1.22919084,118780.0,118770.0,0.1255985]
[1759406287614,1.20614321,118780.0,118770.0,0.1255985]
[1759406288224,1.46450277,118780.0,118770.0,0.1255985]
[1759406288824,1.20614321,118780.0,118770.0,0.1255985]
[1759406289010,1.46450277,118780.0,118770.0,0.04144]
[1759406289213,1.46450277,118780.0,118770.0,0.02031]
[1759406289415,1.48754976,118780.0,118770.0,0.04144]
[1759406290016,1.48754976,118780.0,118770.0,0.02031]
[1759406290222,1.46450277,118780.0,118770.0,0.02031]
[1759406291216,1.46450277,118780.0,118770.0,0.04144]
[1759406293225,0.84534321,118780.0,118770.0,0.1255986]
[1759406293420,0.84534321,118780.0,118770.0,0.04144]
[1759406293621,1.46450277,118780.0,118770.0,0.04144]
[1759406295423,7.211e-05,118780.0,118770.0,1.00311352]
[1759406295728,0.0841404,118790.0,118780.0,0.1185869]
[1759406296029,0.8213404,118790.0,118780.0,0.37694646]
[1759406296726,0.0841397,118790.0,118780.0,0.77694646]
[1759406296919,0.46207324,118800.0,118790.0,0.1185797]
[1759406297118,1.22323324,118800.0,118790.0,0.1185797]
[1759406297613,1.2060992,118800.0,118790.0,0.1185797]
[1759406297818,1.2229797,118800.0,118790.0,0.1185797]
[1759406298220,0.8621797,118800.0,118790.0,0.4813797]
[1759406298830,0.8621797,118800.0,118790.0,0.1205797]
[1759406299533,0.8621797,118800.0,118790.0,0.37893926]
[1759406299828,0.8620997,118800.0,118790.0,0.1205797]
[1759406300423,0.8620997,118800.0,118790.0,0.4813797]
[1759406300624,0.8620997,118800.0,118790.0,0.1205797]
[1759406301123,0.8452192,118800.0,118790.0,0.1205797]
[1759406302623,0.8452192,118800.0,118790.0,0.4813797]
[1759406303226,0.76108,118800.0,118790.0,0.73973926]
[1759406303727,0.0841327,118800.0,118790.0,0.73973926]
[1759406304226,0.8450527,118800.0,118790.0,0.73973926]
[1759406311232,0.8450527,118800.0,118790.0,0.4813797]
[1759406311530,0.8450527,118800.0,118790.0,0.73973926]
[1759406316833,0.09664241,118810.0,118800.0,0.1194429]
[1759406317030,0.85720241,118810.0,118800.0,0.73860246]
[1759406318539,0.8449313,118810.0,118800.0,0.73860246]
[1759406319131,0.7608,118810.0,118800.0,0.73860246]
[1759406319936,0.09589588,118820.0,118810.0,0.1194358]
[1759406320240,0.85665588,118820.0,118810.0,0.1194358]
[1759406320630,0.85665588,118820.0,118810.0,0.37779536]
[1759406321036,0.85765588,118820.0,118810.0,0.73859536]
[1759406321237,0.85765588,118820.0,118810.0,0.4802358]
[1759406321438,0.77353128,118820.0,118810.0,0.73859536]
[1759406322137,0.85764988,118820.0,118810.0,0.73859536]
[1759406322337,1.1147959,118820.0,118810.0,0.73838182]
[1759406322542,1.1157959,118820.0,118810.0,0.73838182]
[1759406328446,0.85764988,118820.0,118810.0,0.73838182]
[1759406328755,1.1157959,118820.0,118810.0,0.73838182]
[1759406331953,0.85764988,118820.0,118810.0,0.73838182]
[1759406332253,1.1157959,118820.0,118810.0,0.73838182]
[1759406333956,1.1157959,118820.0,118810.0,0.4802358]
[1759406334254,1.1157959,118820.0,118810.0,0.73838182]
[1759406335561,1.1147959,118820.0,118810.0,0.73838182]
[1759406339270,1.1147959,118820.0,118810.0,0.4802358]
[1759406339462,1.1147959,118820.0,118810.0,0.73838182]
[1759406339663,1.37294192,118820.0,118810.0,0.74038182]
[1759406339962,1.37294192,118820.0,118810.0,0.74238182]
[1759406340265,1.37294192,118820.0,118810.0,0.38158182]
[1759406340967,1.37294192,118820.0,118810.0,0.1234358]